bitfinex/quotes_BTCUSD_20250901
["timestamp","ask_amount","ask_price","bid_price","bid_amount"]
[1756730983008,0.47353717,109180.0,109170.0,0.32257599]
[1756730984022,0.47353717,109180.0,109170.0,0.5057765]
[1756730984259,0.47376717,109180.0,109170.0,0.16829599]
[1756730984472,0.47376717,109180.0,109170.0,0.32249599]
[1756730984676,0.48515413,109180.0,109170.0,0.32249599]
[1756730984822,0.48515413,109180.0,109170.0,0.07638]
[1756730985030,0.77550757,109180.0,109170.0,0.2256]
[1756730985647,1.14303257,109180.0,109170.0,0.2256]
[1756730986878,1.14303257,109180.0,109170.0,0.2246]
[1756730987325,1.14503257,109180.0,109170.0,0.2246]
[1756730987521,1.14403257,109180.0,109170.0,0.2246]
[1756730987735,1.14303257,109180.0,109170.0,0.2246]
[1756730987950,1.14503257,109180.0,109170.0,0.2246]
[1756730988152,1.14703257,109180.0,109170.0,0.2246]
[1756730992684,1.14703257,109180.0,109170.0,0.0704]
[1756730992885,1.14703257,109180.0,109170.0,0.2246]
[1756730993341,0.85667913,109180.0,109170.0,0.22958]
[1756730993569,0.85667913,109180.0,109170.0,0.22753]
[1756730993988,0.85667913,109180.0,109170.0,0.22958]
[1756730993989,0.85644913,109180.0,109170.0,0.22958]
[1756730994337,0.85667913,109180.0,109170.0,0.22958]
[1756730995365,1.14703257,109180.0,109170.0,0.22958]
[1756730995604,1.14703257,109180.0,109170.0,0.22753]
[1756730996350,1.14703257,109180.0,109170.0,0.22958]
[1756730996546,1.14703257,109180.0,109170.0,0.22753]
[1756730998510,1.14703257,109180.0,109170.0,0.22958]
[1756730998714,1.14703257,109180.0,109170.0,0.22753]
[1756730999449,1.14703257,109180.0,109170.0,0.22958]
[1756731000362,1.14703257,109180.0,109170.0,0.2246]
[1756731000777,1.14703257,109180.0,109170.0,0.22958]
[1756731002963,1.14703257,109180.0,109170.0,0.22753]
[1756731003606,0.18321729,109160.0,109150.0,0.0704]
[1756731003810,0.47357073,109160.0,109150.0,0.31651599]
[1756731004021,0.47357073,109160.0,109150.0,0.31856599]
[1756731004229,0.47357073,109160.0,109150.0,0.22958]
[1756731004883,0.47357073,109160.0,109150.0,0.22967175]
[1756731005707,0.47357073,109160.0,109150.0,0.23067175]
[1756731006158,0.47357073,109160.0,109150.0,0.41390583]
[1756731006362,0.47357073,109160.0,109150.0,0.25970583]
[1756731006586,0.47357073,109160.0,109150.0,0.41390583]
[1756731007000,0.47357073,109160.0,109150.0,0.50582182]
[1756731007001,0.29035344,109160.0,109150.0,0.50582182]
[1756731007206,0.18321729,109160.0,109150.0,0.50582182]
[1756731007416,0.47357073,109160.0,109150.0,0.50582182]
[1756731007645,0.29035344,109160.0,109150.0,0.50582182]
[1756731007858,0.50109727,109170.0,109160.0,0.18321729]
[1756731008071,0.50109727,109170.0,109160.0,0.18525729]
[1756731008262,0.50109727,109170.0,109160.0,0.18819729]
[1756731009322,0.50209727,109170.0,109160.0,0.00498]
[1756731009539,0.50309727,109170.0,109160.0,0.00498]
[1756731009675,0.50309727,109170.0,109160.0,0.15918]
[1756731009676,0.79368071,109170.0,109160.0,0.15918]
[1756731009893,0.79345071,109170.0,109160.0,0.15918]
[1756731010357,0.18520051,109170.0,109160.0,0.34239729]
[1756731010584,0.002,109170.0,109160.0,0.43431328]
[1756731011512,0.29235344,109170.0,109160.0,0.43431328]
[1756731011721,0.29035344,109170.0,109160.0,0.43431328]
[1756731012123,0.29035344,109170.0,109160.0,0.43531328]
[1756731012925,0.18318373,109180.0,109170.0,0.18320051]
[1756731013114,0.47353717,109180.0,109170.0,0.3478065]
[1756731013314,0.47353717,109180.0,109170.0,0.5046965]
[1756731014289,0.47453717,109180.0,109170.0,0.5046965]
[1756731014914,0.47553717,109180.0,109170.0,0.5046965]
[1756731016150,0.47553717,109180.0,109170.0,0.32149599]
[1756731016371,0.47576717,109180.0,109170.0,0.31945599]
[1756731016584,0.76612061,109180.0,109170.0,0.2246]
[1756731016802,0.76612061,109180.0,109170.0,0.1542]
[1756731017008,0.18321729,109160.0,109150.0,0.12315148]
[1756731017218,0.47357073,109160.0,109150.0,0.36926747]
[1756731017428,0.47380073,109160.0,109150.0,0.20860747]
[1756731017665,0.47380073,109160.0,109150.0,0.22967175]
[1756731018085,0.47357073,109160.0,109150.0,0.22967175]
[1756731018294,0.47357073,109160.0,109150.0,0.23167175]
[1756731018498,0.47357073,109160.0,109150.0,0.23267175]
[1756731019114,0.47357073,109160.0,109150.0,0.07847175]
[1756731019321,0.47357073,109160.0,109150.0,0.2741428]
[1756731019522,0.47357073,109160.0,109150.0,0.2721428]
[1756731019930,0.47357073,109160.0,109150.0,0.2731428]
[1756731020464,0.47357073,109160.0,109150.0,0.2721428]
[1756731021021,0.47357073,109160.0,109150.0,0.1179428]
[1756731021184,0.47357073,109160.0,109150.0,0.2721428]
[1756731021593,0.18321729,109160.0,109150.0,0.45537688]
[1756731021801,0.21072851,109170.0,109150.0,0.54729287]
[1756731022010,0.21072851,109170.0,109160.0,0.28036349]
[1756731022011,0.18320051,109170.0,109160.0,0.28036349]
[1756731022213,0.18320051,109170.0,109160.0,0.28011328]
[1756731023290,0.18420051,109170.0,109160.0,0.28011328]
[1756731023729,0.001,109170.0,109160.0,0.28011328]
[1756731025437,0.002,109170.0,109160.0,0.28011328]
[1756731025665,0.001,109170.0,109160.0,0.28011328]
[1756731026135,0.001,109170.0,109160.0,0.57146672]
[1756731026429,0.2933936,109190.0,109170.0,0.18320051]
[1756731026642,0.92374704,109190.0,109180.0,0.15918]
[1756731027547,0.85020073,109190.0,109180.0,0.15918]
[1756731028955,0.85220073,109190.0,109180.0,0.15918]
[1756731029390,0.85420073,109190.0,109180.0,0.15918]
[1756731029803,0.85220073,109190.0,109180.0,0.15918]
[1756731030103,0.85420073,109190.0,109180.0,0.15918]
[1756731030330,0.56384729,109190.0,109180.0,0.15918]
[1756731030507,0.85220073,109190.0,109180.0,0.15918]
[1756731031359,0.18318373,109180.0,109170.0,0.3455165]
[1756731031631,0.18318373,109180.0,109170.0,0.4997165]
[1756731031838,0.18318373,109180.0,109170.0,0.5017565]
[1756731032020,0.18318373,109180.0,109170.0,0.5046965]
[1756731032845,0.18318373,109180.0,109170.0,0.5056965]
[1756731035856,0.19230768,109200.0,109180.0,0.18318373]
[1756731036065,0.82266112,109200.0,109190.0,0.15941]
[1756731036268,0.85018012,109200.0,109190.0,0.15941]
[1756731036468,0.48266112,109200.0,109190.0,0.34486653]
[1756731036677,0.48266112,109200.0,109190.0,0.34257695]
[1756731037272,0.19230768,109200.0,109190.0,0.41297695]
[1756731037502,0.19430768,109200.0,109190.0,0.41297695]
[1756731037656,0.19430768,109200.0,109190.0,0.22981]
[1756731038083,0.19630768,109200.0,109190.0,0.22981]
[1756731038834,0.48466112,109200.0,109190.0,0.22981]
[1756731039035,0.48566112,109200.0,109190.0,0.22981]
[1756731039253,0.48366112,109200.0,109190.0,0.22981]
[1756731039661,0.48466112,109200.0,109190.0,0.22981]
[1756731040005,0.48466112,109200.0,109190.0,0.07561]
[1756731040206,0.48489112,109200.0,109190.0,0.22456]
[1756731040419,0.48466112,109200.0,109190.0,0.22977]
[1756731041589,0.48466112,109200.0,109190.0,0.41293695]
[1756731042391,0.48466112,109200.0,109190.0,0.22977]
[1756731043634,0.48466112,109200.0,109190.0,0.07561]
[1756731043810,0.48466112,109200.0,109190.0,0.23205958]
[1756731044017,0.48466112,109200.0,109190.0,0.22977]
[1756731047831,0.48466112,109200.0,109190.0,0.07561]
[1756731048049,0.48489112,109200.0,109190.0,0.0704]
[1756731048276,0.48489112,109200.0,109190.0,0.22456]
[1756731048913,0.48489112,109200.0,109190.0,0.22772]
[1756731049127,0.19453768,109200.0,109190.0,0.22977]
[1756731049317,0.48489112,109200.0,109190.0,0.22977]
[1756731049531,0.48466112,109200.0,109190.0,0.22977]
[1756731049659,0.19430768,109200.0,109190.0,0.22977]
[1756731049891,0.48466112,109200.0,109190.0,0.22977]
[1756731050335,0.19430768,109200.0,109190.0,0.22977]
[1756731050567,0.48466112,109200.0,109190.0,0.22977]
[1756731051955,0.48466112,109200.0,109190.0,0.41293695]
[1756731052298,0.48466112,109200.0,109190.0,0.22977]
[1756731052506,0.48466112,109200.0,109190.0,0.41293695]
[1756731052862,0.48466112,109200.0,109190.0,0.22977]
[1756731053251,0.19430768,109200.0,109190.0,0.22977]
[1756731053456,0.47353068,109200.0,109190.0,0.22977]
[1756731053897,0.48268818,109200.0,109190.0,0.22977]
[1756731054266,0.48268818,109200.0,109190.0,0.41293695]
[1756731055017,0.48268818,109200.0,109190.0,0.22977]
[1756731056872,0.48291818,109200.0,109190.0,0.22977]
[1756731057074,0.48268818,109200.0,109190.0,0.22977]
[1756731057601,0.48268818,109200.0,109190.0,0.0704]
[1756731057602,0.48291818,109200.0,109190.0,0.0704]
[1756731057803,0.77327162,109200.0,109190.0,0.0704]
[1756731058037,0.77341162,109200.0,109190.0,0.22456]
[1756731058209,0.80093162,109200.0,109190.0,0.22456]
[1756731058640,0.18318373,109180.0,109170.0,0.0704]
[1756731058840,0.47353717,109180.0,109170.0,0.22456]
[1756731059052,0.47376717,109180.0,109170.0,0.0704]
[1756731059261,0.47376717,109180.0,109170.0,0.22456]
[1756731060069,0.47376717,109180.0,109170.0,0.22656]
[1756731060272,0.47376717,109180.0,109170.0,0.23056]
[1756731060478,0.47376717,109180.0,109170.0,0.0764]
[1756731060689,0.76412061,109180.0,109170.0,0.23056]
[1756731060864,0.47376717,109180.0,109170.0,0.23056]
[1756731061055,0.50129117,109180.0,109170.0,0.22656]
[1756731061657,0.79164461,109180.0,109170.0,0.22656]
[1756731062079,0.79264461,109180.0,109170.0,0.22656]
[1756731062459,0.79164461,109180.0,109170.0,0.22656]
[1756731062877,0.79264461,109180.0,109170.0,0.22656]
[1756731063686,0.79264461,109180.0,109170.0,0.22456]
[1756731064077,0.79264461,109180.0,109170.0,0.22656]
[1756731064882,0.50229117,109180.0,109170.0,0.22656]
[1756731066253,0.21193773,109180.0,109170.0,0.23151]
[1756731066452,0.50229117,109180.0,109170.0,0.23151]
[1756731066659,0.50229117,109180.0,109170.0,0.22656]
[1756731067065,0.50229117,109180.0,109170.0,0.23151]
[1756731067653,0.50206117,109180.0,109170.0,0.41471051]
[1756731068191,0.50206117,109180.0,109170.0,0.07735]
[1756731068385,0.50206117,109180.0,109170.0,0.23151]
[1756731068717,0.50206117,109180.0,109170.0,0.41471051]
[1756731070369,0.50206117,109180.0,109170.0,0.23151]
[1756731070767,0.50229117,109180.0,109170.0,0.22656]
[1756731071260,0.50206117,109180.0,109170.0,0.23151]
[1756731072392,0.50206117,109180.0,109170.0,0.07735]
[1756731072598,0.50206117,109180.0,109170.0,0.23151]
[1756731073948,0.50229117,109180.0,109170.0,0.23151]
[1756731074151,0.50229117,109180.0,109170.0,0.22954]
[1756731074889,0.50229117,109180.0,109170.0,0.23151]
[1756731075719,0.27491933,109180.0,109170.0,0.23151]
[1756731075918,0.45810306,109180.0,109170.0,0.23151]
[1756731076086,0.45810306,109180.0,109170.0,0.07735]
[1756731076292,0.45810306,109180.0,109170.0,0.22656]
[1756731076900,0.18341373,109180.0,109170.0,0.22954]
[1756731077117,0.47376717,109180.0,109170.0,0.22954]
[1756731077327,0.76412061,109180.0,109170.0,0.0724]
[1756731077500,0.76412061,109180.0,109170.0,0.22656]
[1756731077700,0.47376717,109180.0,109170.0,0.22954]
[1756731078287,0.47376717,109180.0,109170.0,0.22656]
[1756731078512,0.76412061,109180.0,109170.0,0.22656]
[1756731081544,0.76412061,109180.0,109170.0,0.0724]
[1756731081747,0.76412061,109180.0,109170.0,0.22656]
[1756731081962,1.10426061,109180.0,109170.0,0.002]
[1756731082204,1.10412061,109180.0,109170.0,0.15616]
[1756731082410,1.13164861,109180.0,109170.0,0.15616]
[1756731084004,0.84106517,109180.0,109170.0,0.16111]
[1756731084396,0.84129517,109180.0,109170.0,0.16111]
[1756731084597,0.84129517,109180.0,109170.0,0.15616]
[1756731084809,1.13164861,109180.0,109170.0,0.15914]
[1756731085219,0.84129517,109180.0,109170.0,0.15914]
[1756731085637,1.13164861,109180.0,109170.0,0.15914]
[1756731085809,1.13164861,109180.0,109170.0,0.16111]
[1756731086428,1.13164861,109180.0,109170.0,0.15616]
[1756731089080,1.13164861,109180.0,109170.0,0.15914]
[1756731089447,1.13164861,109180.0,109170.0,0.15616]
[1756731089652,0.84129517,109180.0,109170.0,0.15616]
[1756731090905,1.13164861,109180.0,109170.0,0.002]
[1756731091119,1.13164861,109180.0,109170.0,0.15616]
[1756731091331,1.39880342,109180.0,109170.0,0.002]
[1756731092618,1.39866342,109180.0,109170.0,0.002]
[1756731093031,1.40080342,109180.0,109170.0,0.002]
[1756731093239,0.52320051,109170.0,109160.0,0.15416]
[1756731093448,1.10390739,109170.0,109160.0,0.15416]
[1756731093869,1.10413739,109170.0,109160.0,0.15714]
[1756731094302,1.10413739,109170.0,109160.0,0.15416]
[1756731094474,1.13166539,109170.0,109160.0,0.15416]
[1756731095277,1.13166539,109170.0,109160.0,0.15733]
[1756731095660,1.13166539,109170.0,109160.0,0.00317]
[1756731095868,1.13166539,109170.0,109160.0,0.15733]
[1756731096055,1.13266539,109170.0,109160.0,0.15733]
[1756731096706,0.18321729,109160.0,109150.0,0.0704]
[1756731096863,0.47380073,109160.0,109150.0,0.22456]
[1756731097063,0.47380073,109160.0,109150.0,0.22773]
[1756731097279,0.47380073,109160.0,109130.0,0.027529]
[1756731097481,0.47360431,109140.0,109130.0,0.16231599]
[1756731097680,0.47360431,109140.0,109130.0,0.31861599]
[1756731097906,0.18325087,109140.0,109130.0,0.5051454]
[1756731098086,0.47360431,109140.0,109130.0,0.5051454]
[1756731098281,0.18325087,109140.0,109130.0,0.5051454]
[1756731099694,0.18325087,109140.0,109130.0,0.54711509]
[1756731099904,0.47360282,109150.0,109130.0,0.55111509]
[1756731100081,0.47360282,109150.0,109130.0,0.54794509]
[1756731100288,0.47360282,109150.0,109140.0,0.00317]
[1756731100692,0.47360282,109150.0,109140.0,0.00531]
[1756731102468,0.48439299,109150.0,109140.0,0.00531]
[1756731102665,0.48439299,109150.0,109140.0,0.00831]
[1756731103645,0.48439299,109150.0,109140.0,0.00631]
[1756731104031,0.82462299,109150.0,109140.0,0.00417]
[1756731104239,0.18325087,109140.0,109130.0,0.07366175]
[1756731104421,0.47383431,109140.0,109130.0,0.22996175]
[1756731104825,0.47360431,109140.0,109130.0,0.22996175]
[1756731106895,0.47360431,109140.0,109130.0,0.23196175]
[1756731107131,0.47383431,109140.0,109130.0,0.07780175]
[1756731107343,1.10418775,109140.0,109130.0,0.00209175]
[1756731107597,1.10418775,109140.0,109130.0,0.15625175]
[1756731107807,1.13172375,109140.0,109130.0,0.15625175]
[1756731108423,1.13172375,109140.0,109130.0,0.15425175]
[1756731108845,1.13272375,109140.0,109130.0,0.15425175]
[1756731109027,1.10518775,109140.0,109130.0,0.15425175]
[1756731110502,1.10418775,109140.0,109130.0,0.15425175]
[1756731110939,1.10518775,109140.0,109130.0,0.15742175]
[1756731113544,0.52448087,109140.0,109130.0,0.15956175]
[1756731113778,0.81483431,109140.0,109130.0,0.15956175]
[1756731113979,0.29135344,109140.0,109130.0,0.15956175]
[1756731114191,0.47460431,109140.0,109130.0,0.15956175]
[1756731115399,0.47460431,109140.0,109130.0,0.00540175]
[1756731115578,0.47460431,109140.0,109130.0,0.15956175]
[1756731117429,0.47460431,109140.0,109130.0,0.23000175]
[1756731117637,0.18425087,109140.0,109130.0,0.23000175]
[1756731117843,0.47460431,109140.0,109130.0,0.23000175]
[1756731119174,0.47460431,109140.0,109130.0,0.07584175]
[1756731119379,0.47460431,109140.0,109130.0,0.23000175]
[1756731120059,0.18425087,109140.0,109130.0,0.23000175]
[1756731120263,0.47460431,109140.0,109130.0,0.23000175]
[1756731124755,0.76495775,109140.0,109130.0,0.23000175]
[1756731124976,0.76495775,109140.0,109130.0,0.15425175]
[1756731125191,0.76495775,109140.0,109130.0,9.175e-05]
[1756731125192,0.91911775,109140.0,109130.0,9.175e-05]
[1756731125395,1.05951056,109140.0,109130.0,9.175e-05]
[1756731125605,1.39951056,109140.0,109130.0,9.175e-05]
[1756731127376,1.41928155,109140.0,109130.0,9.175e-05]
[1756731128650,1.70963499,109140.0,109130.0,9.175e-05]
[1756731128868,0.18331805,109100.0,109090.0,0.07364]
[1756731129074,0.18331805,109100.0,109090.0,0.07411085]
[1756731129075,0.47367149,109100.0,109090.0,0.07411085]
[1756731129285,0.47367149,109100.0,109090.0,0.22827085]
[1756731129492,0.47367149,109100.0,109090.0,0.00367085]
[1756731129698,0.18331805,109100.0,109090.0,0.00568085]
[1756731129905,0.47367149,109100.0,109090.0,0.00568085]
[1756731130756,0.18331805,109100.0,109090.0,0.34317571]
[1756731130963,0.50120069,109110.0,109100.0,0.18331805]
[1756731131183,0.47365469,109110.0,109100.0,0.00521]
[1756731131805,0.47365469,109110.0,109100.0,0.18852805]
[1756731132188,0.47365469,109110.0,109100.0,0.00521]
[1756731132523,0.18330125,109110.0,109100.0,0.18852805]
[1756731132764,0.47365469,109110.0,109100.0,0.19052805]
[1756731132968,0.18330125,109110.0,109100.0,0.19052805]
[1756731133173,0.48281389,109130.0,109110.0,0.18330125]
[1756731133382,0.18328445,109120.0,109110.0,0.33746125]
[1756731133591,0.48281389,109130.0,109120.0,0.00521]
[1756731133592,0.51035389,109130.0,109120.0,0.00521]
[1756731133771,0.85035389,109130.0,109120.0,0.00521]
[1756731134210,0.86107575,109130.0,109120.0,0.00521]
[1756731135363,0.18330125,109110.0,109100.0,0.24807599]
[1756731135564,0.47365469,109110.0,109100.0,0.24808599]
[1756731135967,0.47365469,109110.0,109100.0,0.15937]
[1756731136196,0.47365469,109110.0,109100.0,0.00521]
[1756731136355,0.47365469,109110.0,109100.0,0.15736]
[1756731136678,0.47365469,109110.0,109100.0,0.15936]
[1756731136915,0.76400813,109110.0,109100.0,0.15936]
[1756731137090,0.47365469,109110.0,109100.0,0.15936]
[1756731137294,0.47365469,109110.0,109100.0,0.002]
[1756731137497,0.47365469,109110.0,109100.0,0.15817]
[1756731137702,0.47365469,109110.0,109100.0,0.16137]
[1756731137937,0.18330125,109110.0,109100.0,0.16137]
[1756731138343,0.47365469,109110.0,109100.0,0.16137]
[1756731138554,0.47365469,109110.0,109100.0,0.15616]
[1756731138965,0.47365469,109110.0,109100.0,0.15936]
[1756731139191,0.47365469,109110.0,109100.0,0.16137]
[1756731143767,0.47365469,109110.0,109100.0,0.00721]
[1756731143945,0.47365469,109110.0,109100.0,0.16137]
[1756731144197,0.47365469,109110.0,109100.0,0.00721]
[1756731144400,0.47365469,109110.0,109100.0,0.002]
[1756731144637,0.76400813,109110.0,109100.0,0.002]
[1756731144981,0.76400813,109110.0,109100.0,0.0052]
[1756731145599,0.76400813,109110.0,109100.0,0.002]
[1756731146264,0.18331805,109100.0,109090.0,0.22827085]
[1756731146451,0.47367149,109100.0,109090.0,0.22827085]
[1756731146684,0.47367149,109100.0,109090.0,0.23028085]
[1756731146874,0.47367149,109100.0,109090.0,0.07091085]
[1756731147288,0.47367149,109100.0,109090.0,0.15463085]
[1756731147505,0.47367149,109100.0,109090.0,0.00047085]
[1756731147924,0.62783149,109100.0,109090.0,0.00247085]
[1756731148104,0.62783149,109100.0,109090.0,0.00047085]
[1756731148952,0.47367149,109100.0,109090.0,0.00047085]
[1756731149173,0.62783149,109100.0,109090.0,0.00568085]
[1756731149414,0.18331805,109100.0,109090.0,0.18901571]
[1756731149631,0.18331805,109100.0,109090.0,0.00568085]
[1756731149835,0.47367149,109100.0,109090.0,0.00568085]
[1756731150169,0.47367149,109100.0,109090.0,0.18901571]
[1756731150383,0.47367149,109100.0,109090.0,0.00568085]
[1756731150589,0.47467149,109100.0,109090.0,0.00568085]
[1756731150981,0.47367149,109100.0,109090.0,0.00568085]
[1756731151184,0.47467149,109100.0,109090.0,0.00568085]
[1756731151382,0.47467149,109100.0,109090.0,0.00768085]
[1756731151624,0.47367149,109100.0,109090.0,0.00768085]
[1756731151834,0.47367149,109100.0,109090.0,0.00567085]
[1756731152054,0.47367149,109100.0,109090.0,0.15987085]
[1756731152274,0.47367149,109100.0,109090.0,0.00247085]
[1756731152495,0.47367149,109100.0,109090.0,0.00768085]
[1756731153097,0.47367149,109100.0,109090.0,0.00568085]
[1756731154523,0.47467149,109100.0,109090.0,0.00568085]
[1756731154962,0.47367149,109100.0,109090.0,0.00568085]
[1756731155189,0.47367149,109100.0,109090.0,0.00047085]
[1756731155411,0.47467149,109100.0,109090.0,0.00047085]
[1756731155853,0.47467149,109100.0,109090.0,0.00565085]
[1756731156218,0.18431805,109100.0,109090.0,0.00565085]
[1756731156427,0.47467149,109100.0,109090.0,0.00565085]
[1756731156944,0.29135344,109100.0,109090.0,0.18898571]
[1756731157146,0.001,109100.0,109090.0,0.18898571]
[1756731157274,0.001,109100.0,109090.0,0.54977915]
[1756731157478,0.001,109100.0,109090.0,0.64169514]
[1756731157843,0.19246385,109120.0,109110.0,0.18330125]
[1756731158059,0.19246385,109120.0,109110.0,0.33959125]
[1756731158256,0.19246385,109120.0,109110.0,0.34280125]
[1756731158458,0.18329963,109120.0,109110.0,0.34280125]
[1756731160499,0.47365307,109120.0,109110.0,0.34480125]
[1756731160871,0.47365307,109120.0,109110.0,0.16154]
[1756731161091,0.47365307,109120.0,109110.0,0.00718]
[1756731161295,0.47365307,109120.0,109110.0,0.1615]
[1756731161947,0.18329963,109120.0,109110.0,0.1615]
[1756731162381,0.47365307,109120.0,109110.0,0.1615]
[1756731164447,0.18329963,109120.0,109110.0,0.1615]
[1756731164671,0.47365307,109120.0,109110.0,0.1615]
[1756731165471,0.47365307,109120.0,109110.0,0.00718]
[1756731165661,0.47365307,109120.0,109110.0,0.16142]
[1756731166091,0.18329963,109120.0,109110.0,0.16142]
[1756731166296,0.47365307,109120.0,109110.0,0.16142]
[1756731169824,0.47365307,109120.0,109110.0,0.15945]
[1756731170278,0.47365307,109120.0,109110.0,0.16142]
[1756731170733,0.47365307,109120.0,109110.0,0.00718]
[1756731170954,0.47365307,109120.0,109110.0,0.16134]
[1756731171878,0.18329963,109120.0,109110.0,0.16134]
[1756731172118,0.47365307,109120.0,109110.0,0.16134]
[1756731172456,0.47365307,109120.0,109110.0,0.34464125]
[1756731174056,0.47365307,109120.0,109110.0,0.16134]
[1756731174251,0.47365307,109120.0,109110.0,0.34464125]
[1756731174802,0.47365307,109120.0,109110.0,0.00718]
[1756731175053,0.47365307,109120.0,109110.0,0.16134]
[1756731176554,0.47365307,109120.0,109110.0,0.00718]
[1756731176723,0.47365307,109120.0,109110.0,0.15616]
[1756731177416,0.47365307,109120.0,109110.0,0.15937]
[1756731177800,0.47365307,109120.0,109110.0,0.15416]
[1756731178179,0.28411562,109120.0,109110.0,0.15416]
[1756731178364,0.46742767,109120.0,109110.0,0.15416]
[1756731178573,0.46742767,109120.0,109110.0,0.15737]
[1756731179238,0.47466549,109120.0,109110.0,0.15416]
[1756731179699,0.47466549,109120.0,109090.0,0.16282684]
[1756731179700,0.18330125,109110.0,109090.0,0.16282684]
[1756731179897,0.47367149,109100.0,109090.0,0.16603684]
[1756731180107,0.47367149,109100.0,109090.0,0.5055017]
[1756731180308,0.47365469,109110.0,109090.0,0.5055017]
[1756731180509,0.47365469,109110.0,109100.0,0.00321]
[1756731180913,0.47365469,109110.0,109100.0,0.00518]
[1756731182124,0.47365469,109110.0,109100.0,0.15934]
[1756731182787,0.47365469,109110.0,109100.0,0.16134]
[1756731183429,0.47365469,109110.0,109100.0,0.15616]
[1756731184280,0.76400813,109110.0,109100.0,0.002]
[1756731184514,1.25816813,109110.0,109100.0,0.002]
[1756731184729,0.18331805,109100.0,109090.0,0.22507085]
[1756731184979,0.47367149,109100.0,109090.0,0.15769085]
[1756731185197,0.47367149,109100.0,109090.0,0.15463085]
[1756731185626,0.47367149,109100.0,109090.0,0.00047085]
[1756731185833,0.47367149,109100.0,109090.0,0.15463085]
[1756731186270,0.47367149,109100.0,109090.0,0.00047085]
[1756731186489,0.47367149,109100.0,109090.0,0.15463085]
[1756731187572,0.47367149,109100.0,109090.0,0.15968085]
[1756731188139,0.47367149,109100.0,109090.0,0.15769085]
[1756731188380,0.47367149,109100.0,109090.0,0.15463085]
[1756731188622,0.47467149,109100.0,109090.0,0.15463085]
[1756731188826,0.47467149,109100.0,109090.0,0.15769085]
[1756731190051,0.47467149,109100.0,109090.0,0.15968085]
[1756731190883,0.47467149,109100.0,109090.0,0.00047085]
[1756731191073,0.47467149,109100.0,109090.0,0.15968085]
[1756731191515,0.47467149,109100.0,109090.0,0.00552085]
[1756731191729,0.47467149,109100.0,109090.0,0.15968085]
[1756731192169,0.47467149,109100.0,109090.0,0.15463085]
[1756731192818,0.47467149,109100.0,109090.0,0.15968085]
[1756731193479,0.47467149,109100.0,109090.0,0.15769085]
[1756731194029,0.47467149,109100.0,109090.0,0.15968085]
[1756731195506,0.47467149,109100.0,109090.0,0.15463085]
[1756731196252,0.47467149,109100.0,109090.0,0.00047085]
[1756731197570,0.47467149,109100.0,109090.0,0.00353085]
[1756731198705,0.47467149,109100.0,109090.0,0.00552085]
[1756731198909,0.47467149,109100.0,109090.0,0.00353085]
[1756731199138,0.47467149,109100.0,109090.0,0.00552085]
[1756731200023,0.47467149,109100.0,109090.0,0.00353085]
[1756731200947,0.47467149,109100.0,109090.0,0.00047085]
[1756731201102,0.47467149,109100.0,109090.0,0.00353085]
[1756731202386,0.47467149,109100.0,109090.0,0.00552085]
[1756731208157,0.18431805,109100.0,109090.0,0.18885571]
[1756731208373,0.47467149,109100.0,109090.0,0.18885571]
[1756731208850,0.18431805,109100.0,109090.0,0.18885571]
[1756731209104,0.47467149,109100.0,109090.0,0.15972085]
[1756731210245,0.47467149,109100.0,109090.0,0.00047085]
[1756731210452,0.62887149,109100.0,109090.0,0.00047085]
[1756731210873,0.98981031,109100.0,109090.0,0.00047085]
[1756731211541,1.37207974,109100.0,109090.0,0.00047085]
[1756731211976,1.39187288,109100.0,109090.0,0.00047085]
[1756731212380,1.39187288,109100.0,109080.0,0.0004]
[1756731212381,0.20427368,109090.0,109080.0,0.0004]
[1756731212601,0.87689655,109090.0,109080.0,0.00044717]
[1756731215504,0.87889655,109090.0,109080.0,0.00044717]
[1756731215954,0.90645055,109090.0,109080.0,0.00044717]
[1756731216419,0.92622261,109090.0,109080.0,0.00044717]
[1756731217341,0.90645055,109090.0,109080.0,0.00044717]
[1756731218125,1.06065055,109090.0,109080.0,0.00044717]
[1756731222552,1.0804053,109090.0,109080.0,0.00044717]
[1756731222768,1.6191253,109090.0,109080.0,0.00044717]
[1756731222972,1.5226053,109090.0,109080.0,0.00044717]
[1756731223726,1.3684053,109090.0,109080.0,0.00044717]
[1756731223937,1.5226053,109090.0,109080.0,0.00044717]
[1756731227723,1.5225992,109090.0,109080.0,0.00044717]
[1756731228474,1.3683992,109090.0,109080.0,0.00044717]
[1756731228680,1.3683992,109090.0,109080.0,0.00556717]
[1756731228951,1.5225992,109090.0,109080.0,0.00556717]
[1756731229130,1.50285055,109090.0,109080.0,0.00556717]
[1756731229344,1.50285055,109090.0,109080.0,0.00342717]
[1756731230339,1.52260028,109090.0,109080.0,0.00556717]
[1756731230553,1.2854423,109090.0,109080.0,0.00556717]
[1756731230780,0.9454423,109090.0,109080.0,0.00556717]
[1756731231132,0.76210744,109090.0,109080.0,0.18891883]
[1756731231342,0.471754,109090.0,109080.0,0.18891883]
[1756731231521,0.4432,109090.0,109080.0,0.18891883]
[1756731231720,0.4422,109090.0,109080.0,0.18891883]
[1756731231968,0.4432,109090.0,109080.0,0.18891883]
[1756731232121,0.73455344,109090.0,109080.0,0.18891883]
[1756731232327,0.001,109090.0,109080.0,0.18891883]
[1756731232754,0.18433486,109090.0,109080.0,0.18891883]
[1756731233018,0.001,109090.0,109080.0,0.18891883]
[1756731233168,0.50122049,109100.0,109080.0,0.18891883]
[1756731233363,0.29035344,109090.0,109080.0,0.18593883]
[1756731233667,0.29035344,109090.0,109080.0,0.18693883]
[1756731233862,0.4736883,109090.0,109080.0,0.18693883]
[1756731234156,0.76404174,109090.0,109080.0,0.00656717]
[1756731234378,0.93918056,109090.0,109080.0,0.00144717]
[1756731234598,1.27918056,109090.0,109080.0,0.00144717]
[1756731234804,1.27918056,109090.0,109080.0,0.00344717]
[1756731235011,1.27918056,109090.0,109080.0,0.00044717]
[1756731235220,1.37109655,109090.0,109080.0,0.00044717]
[1756731235663,1.37109655,109090.0,109080.0,0.00556717]
[1756731235873,0.9678883,109090.0,109080.0,0.00556717]
[1756731236082,0.9688883,109090.0,109080.0,0.00556717]
[1756731236321,0.9698883,109090.0,109080.0,0.00556717]
[1756731236541,1.25924174,109090.0,109080.0,0.00044717]
[1756731236953,1.25924174,109090.0,109080.0,0.00342717]
[1756731237173,1.25924174,109090.0,109080.0,0.00044717]
[1756731237482,1.37209655,109090.0,109080.0,0.00044717]
[1756731238135,1.37409655,109090.0,109080.0,0.00044717]
[1756731239007,1.37209655,109090.0,109080.0,0.00044717]
[1756731239465,1.37309655,109090.0,109080.0,0.00044717]
[1756731240144,1.08282311,109090.0,109080.0,0.00556717]
[1756731242767,0.31990544,109090.0,109080.0,0.18891883]